bitfinex/quotes_BTCUSD_20250813
["timestamp","ask_amount","ask_price","bid_price","bid_amount"]
[1755094531623,0.10047782,121810.0,121800.0,2.79414059]
[1755094531825,0.08528325,121810.0,121800.0,2.69190059]
[1755094532033,0.08528325,121810.0,121800.0,2.83882059]
[1755094532229,0.08528325,121810.0,121800.0,2.69190059]
[1755094532615,0.08528325,121810.0,121800.0,2.83882059]
[1755094533575,0.08528325,121810.0,121800.0,2.49530059]
[1755094533807,0.10045226,121810.0,121800.0,2.64222059]
[1755094534013,0.01916901,121810.0,121800.0,2.93662688]
[1755094534216,0.004,121810.0,121800.0,3.20337688]
[1755094534399,0.01916883,121810.0,121800.0,3.05669688]
[1755094534600,0.01916883,121810.0,121800.0,3.20325688]
[1755094535285,0.01916883,121810.0,121800.0,2.61537059]
[1755094535488,0.01916883,121810.0,121800.0,3.20313688]
[1755094536417,0.004,121810.0,121800.0,3.20313688]
[1755094536626,0.01916105,121810.0,121800.0,2.61537059]
[1755094536838,0.01916105,121810.0,121800.0,2.76165059]
[1755094537049,0.01916082,121810.0,121800.0,2.61537059]
[1755094537260,0.01916082,121810.0,121800.0,2.76157059]
[1755094537503,0.01916082,121810.0,121800.0,2.3202043]
[1755094537713,0.01916082,121810.0,121800.0,2.49530059]
[1755094537915,0.01916082,121810.0,121800.0,2.64178059]
[1755094538148,0.10188407,121810.0,121800.0,2.64178059]
[1755094538356,0.10188407,121810.0,121800.0,2.63875059]
[1755094538757,0.10188407,121810.0,121800.0,2.64186059]
[1755094539012,0.10188407,121810.0,121800.0,2.49530059]
[1755094539215,0.01916082,121810.0,121800.0,2.93662688]
[1755094539421,0.01916082,121810.0,121800.0,3.05669688]
[1755094539627,0.01916023,121810.0,121800.0,3.05669688]
[1755094539837,0.01916023,121810.0,121800.0,3.20349688]
[1755094540053,0.01916023,121810.0,121800.0,2.61537059]
[1755094540285,0.01916023,121810.0,121800.0,2.76217059]
[1755094540491,0.10188348,121810.0,121800.0,2.64210059]
[1755094540695,0.10188348,121810.0,121800.0,2.0509443]
[1755094540899,0.10188348,121810.0,121800.0,2.63903059]
[1755094541314,0.09788348,121810.0,121800.0,2.63803059]
[1755094541536,0.09788348,121810.0,121800.0,2.93691059]
[1755094541754,0.10088348,121810.0,121800.0,2.93791059]
[1755094542173,0.09788348,121810.0,121800.0,2.93667059]
[1755094542489,0.10188348,121810.0,121800.0,2.83543059]
[1755094542713,0.10188348,121810.0,121800.0,2.83527059]
[1755094542922,0.10188348,121810.0,121800.0,2.83523059]
[1755094543129,0.10188348,121810.0,121800.0,2.63859059]
[1755094543331,0.10444895,121810.0,121800.0,2.0509443]
[1755094543542,0.10525895,121810.0,121800.0,2.0509443]
[1755094544412,0.10525895,121810.0,121800.0,2.1970643]
[1755094545252,0.09009872,121810.0,121800.0,2.0509443]
[1755094545473,0.1052912,121810.0,121800.0,2.0509443]
[1755094545678,0.1052912,121810.0,121800.0,2.1968643]
[1755094545876,0.57161749,121810.0,121800.0,2.0509443]
[1755094546086,0.62889854,121810.0,121800.0,2.0499443]
[1755094546304,0.63649811,121810.0,121800.0,2.1957843]
[1755094546509,0.63649811,121810.0,121800.0,2.0499443]
[1755094546927,0.66149811,121810.0,121800.0,2.1957043]
[1755094547333,0.66149811,121810.0,121800.0,2.18750899]
[1755094547768,0.66851502,121810.0,121800.0,2.03454858]
[1755094547970,0.66851502,121810.0,121800.0,2.18022858]
[1755094548175,0.66851502,121810.0,121800.0,2.02534817]
[1755094548383,0.66151851,121810.0,121800.0,2.02534817]
[1755094548589,0.66151851,121810.0,121800.0,2.16274776]
[1755094549000,0.66151851,121810.0,121800.0,2.15550735]
[1755094549217,0.66951851,121810.0,121800.0,2.15550735]
[1755094549421,0.23390109,121810.0,121800.0,2.00174694]
[1755094549625,0.61138086,121810.0,121800.0,2.14718694]
[1755094549836,0.61138086,121810.0,121800.0,2.13898653]
[1755094550235,0.17005457,121810.0,121800.0,1.98534612]
[1755094550439,0.61138086,121810.0,121800.0,2.13066612]
[1755094550642,0.61138086,121810.0,121800.0,2.12246571]
[1755094550941,0.64336956,121810.0,121800.0,1.95910559]
[1755094551141,0.64336956,121810.0,121800.0,2.10442559]
[1755094551379,0.64336956,121810.0,121800.0,1.95090518]
[1755094551603,0.64336956,121810.0,121800.0,2.39514518]
[1755094551773,0.20204327,121810.0,121800.0,2.38694477]
[1755094551971,0.20204327,121810.0,121800.0,2.38682477]
[1755094552176,0.17005457,121810.0,121800.0,2.24170477]
[1755094552566,0.14505457,121810.0,121800.0,2.38678477]
[1755094552763,0.12181004,121810.0,121800.0,2.24170477]
[1755094552971,0.12181004,121810.0,121800.0,2.38674477]
[1755094553326,0.17181004,121810.0,121800.0,2.38674477]
[1755094553473,0.11924457,121810.0,121800.0,2.24170477]
[1755094553679,0.12181004,121810.0,121800.0,2.28745477]
[1755094553884,0.1135357,121810.0,121800.0,2.28446477]
[1755094554084,0.1135357,121810.0,121800.0,2.28442477]
[1755094554289,0.09072325,121810.0,121800.0,1.94270477]
[1755094554533,0.11138163,121810.0,121800.0,2.08670477]
[1755094554715,0.10564994,121810.0,121800.0,2.08670477]
[1755094554936,0.10564994,121810.0,121800.0,1.94270477]
[1755094555162,0.11246091,121810.0,121800.0,1.94270477]
[1755094555348,0.63948792,121810.0,121800.0,2.08766477]
[1755094555503,0.63692245,121810.0,121800.0,2.08766477]
[1755094555697,0.19559616,121810.0,121800.0,2.08766477]
[1755094555962,0.2013282,121810.0,121800.0,2.08766477]
[1755094556145,0.14319295,121810.0,121800.0,1.94270477]
[1755094556398,0.14494842,121810.0,121800.0,2.08750477]
[1755094556576,0.14494793,121810.0,121800.0,2.08750477]
[1755094556781,0.14575793,121810.0,121800.0,1.94270477]
[1755094557280,0.58708422,121810.0,121800.0,1.94270477]
[1755094557498,0.69009524,121810.0,121800.0,1.93450563]
[1755094557715,0.66509524,121810.0,121800.0,2.07094649]
[1755094557916,0.69009524,121810.0,121800.0,1.92630649]
[1755094558099,0.69009524,121810.0,121800.0,2.06270735]
[1755094558433,0.69009524,121810.0,121800.0,2.06170735]
[1755094558635,0.70870324,121810.0,121800.0,1.90890821]
[1755094558844,0.70870324,121810.0,121800.0,2.05334821]
[1755094559047,0.70870324,121810.0,121800.0,2.04514907]
[1755094559468,0.71770324,121810.0,121800.0,1.89350993]
[1755094559676,0.71770324,121810.0,121800.0,2.03786993]
[1755094559870,0.71770324,121810.0,121800.0,2.02967079]
[1755094560228,0.71770324,121810.0,121800.0,1.82676404]
[1755094560443,0.71270324,121810.0,121800.0,1.35737621]
[1755094560735,0.71270324,121810.0,121800.0,1.31794938]
[1755094560935,0.71270324,121810.0,121800.0,1.20422021]
[1755094561134,0.71270324,121810.0,121800.0,0.94885786]
[1755094561371,1.15402953,121810.0,121800.0,1.08481872]
[1755094561527,1.15402953,121810.0,121800.0,1.13220347]
[1755094561746,1.17002953,121810.0,121800.0,1.09418734]
[1755094561974,1.17428144,121810.0,121800.0,0.91950735]
[1755094562353,1.3239396,121810.0,121800.0,0.88796868]
[1755094562554,1.31725719,121810.0,121800.0,0.7070597]
[1755094562748,0.29105858,121810.0,121800.0,0.8510597]
[1755094562969,0.26267176,121810.0,121800.0,0.67796324]
[1755094563162,1.14532434,121810.0,121800.0,0.79353625]
[1755094563306,0.28027911,121810.0,121800.0,0.64105426]
[1755094563505,1.14532461,121810.0,121800.0,0.64105426]
[1755094563718,1.16293169,121810.0,121800.0,0.74994528]
[1755094563942,1.32712182,121810.0,121800.0,0.74994528]
[1755094564138,1.33412182,121810.0,121800.0,0.51836139]
[1755094564337,1.33412182,121810.0,121800.0,0.4896544]
[1755094564696,1.38320726,121810.0,121800.0,0.49021558]
[1755094564898,1.59245312,121810.0,121800.0,0.27219882]
[1755094565031,1.59245312,121810.0,121800.0,0.34466249]
[1755094565248,0.075,121790.0,121780.0,0.06085138]
[1755094565455,0.58087657,121790.0,121780.0,0.25765138]
[1755094565800,0.58087657,121790.0,121780.0,0.2207424]
[1755094565801,0.59591687,121790.0,121780.0,0.2207424]
[1755094566223,0.59591687,121790.0,121780.0,0.21254041]
[1755094566451,0.05,121780.0,121770.0,0.00703342]
[1755094566656,0.125142,121790.0,121780.0,0.1968]
[1755094566855,0.13873375,121790.0,121780.0,0.1968]
[1755094567055,0.025,121750.0,121740.0,0.0051]
[1755094567269,0.13056088,121750.0,121740.0,0.2019]
[1755094567472,0.025,121740.0,121730.0,0.06147163]
[1755094567601,0.12299415,121740.0,121730.0,0.06147163]
[1755094567806,0.56432044,121740.0,121730.0,0.05326725]
[1755094568010,0.12299415,121740.0,121730.0,0.05326725]
[1755094568212,0.12299415,121740.0,121730.0,0.19095362]
[1755094568415,0.14025537,121740.0,121730.0,0.19095362]
[1755094568639,0.14282231,121740.0,121730.0,0.18274924]
[1755094568845,0.12556109,121740.0,121730.0,0.03734924]
[1755094569288,0.15031218,121740.0,121730.0,0.03734924]
[1755094569705,0.1335448,121740.0,121730.0,0.16111924]
[1755094569911,0.1335448,121740.0,121730.0,0.30683924]
[1755094570117,0.1335448,121740.0,121730.0,0.16111924]
[1755094570316,0.1335448,121740.0,121730.0,0.30679924]
[1755094570539,0.15786108,121740.0,121730.0,0.30679924]
[1755094570760,0.1395448,121740.0,121730.0,0.30679924]
[1755094570962,0.1335448,121740.0,121730.0,0.16111924]
[1755094571164,0.1335448,121740.0,121730.0,0.30671924]
[1755094571368,0.1385448,121740.0,121730.0,0.16111924]
[1755094571591,0.1385448,121740.0,121730.0,0.46031924]
[1755094571798,0.13855884,121740.0,121730.0,0.46031924]
[1755094571997,0.15384404,121740.0,121730.0,0.60579924]
[1755094572256,0.15384404,121740.0,121730.0,0.79928553]
[1755094572400,0.14561657,121740.0,121730.0,0.94468553]
[1755094572775,0.14304963,121740.0,121730.0,0.60244553]
[1755094573193,0.03557529,121740.0,121730.0,0.74780553]
[1755094573516,0.03057529,121740.0,121730.0,0.60244553]
[1755094573723,0.03057529,121740.0,121730.0,0.74772553]
[1755094573929,0.02063525,121740.0,121730.0,1.05021658]
[1755094574166,0.01407798,121740.0,121730.0,1.13293983]
[1755094574370,0.01407798,121740.0,121730.0,1.27817983]
[1755094574571,0.01407798,121740.0,121730.0,1.13293983]
[1755094574745,0.02449994,121790.0,121730.0,1.27821983]
[1755094574965,0.00256547,121810.0,121780.0,0.44132629]
[1755094575163,0.08272325,121800.0,121790.0,0.14524]
[1755094575372,0.08272325,121800.0,121790.0,0.58656629]
[1755094575606,0.09037051,121800.0,121790.0,0.71033629]
[1755094575790,0.09037051,121800.0,121790.0,0.56509629]
[1755094576195,0.0905174,121800.0,121790.0,0.71021629]
[1755094576726,0.0905174,121800.0,121790.0,0.12377]
[1755094576860,0.0905174,121800.0,121790.0,0.26881]
[1755094577072,0.0905174,121800.0,121790.0,0.56509629]
[1755094577275,0.0905174,121800.0,121790.0,0.12377]
[1755094577498,0.0905174,121800.0,121790.0,0.26873]
[1755094577879,0.08287014,121800.0,121790.0,0.26873]
[1755094578076,0.0914137,121800.0,121790.0,0.12377]
[1755094578302,0.08587014,121800.0,121790.0,0.26873]
[1755094578484,0.08587014,121800.0,121790.0,0.14484]
[1755094578683,0.08287014,121800.0,121780.0,0.00322]
[1755094578888,0.10695989,121800.0,121790.0,0.56187629]
[1755094579122,0.10695989,121800.0,121790.0,0.70683629]
[1755094579293,0.10695989,121800.0,121790.0,0.56509629]
[1755094579499,0.06684771,121840.0,121790.0,0.56509629]
[1755094579701,0.08272325,121830.0,121820.0,0.44132629]
[1755094579910,0.09293134,121830.0,121820.0,0.71041629]
[1755094580129,0.09293134,121830.0,121820.0,0.56509629]
[1755094580347,0.09293134,121830.0,121820.0,0.26905]
[1755094580567,0.09293134,121830.0,121820.0,0.12377]
[1755094580978,0.10949257,121830.0,121820.0,0.14516]
[1755094581179,0.11713221,121830.0,121800.0,0.00322]
[1755094581382,0.11713221,121830.0,121810.0,0.24748]
[1755094581682,0.03440896,121830.0,121820.0,0.34188]
[1755094581830,0.03440896,121830.0,121820.0,0.1978]
[1755094581831,0.03940896,121830.0,121820.0,0.1978]
[1755094582035,0.03940896,121830.0,121820.0,0.34288]
[1755094582235,0.03440896,121830.0,121820.0,0.34188]
[1755094582452,0.03440896,121830.0,121820.0,0.34184]
[1755094582652,0.11713221,121830.0,121820.0,0.00322]
[1755094582870,0.12056717,121830.0,121820.0,0.56509629]
[1755094583086,0.11292753,121830.0,121820.0,0.56509629]
[1755094583299,0.11292753,121830.0,121820.0,0.71037629]
[1755094583708,0.11292753,121830.0,121820.0,0.26905]
[1755094583909,0.10692753,121830.0,121820.0,0.71037629]
[1755094584198,0.10692753,121830.0,121820.0,0.71137629]
[1755094584412,0.11392753,121830.0,121820.0,0.56609629]
[1755094584597,0.11392753,121830.0,121820.0,0.71121629]
[1755094585141,0.11392753,121830.0,121820.0,0.71105629]
[1755094585329,0.10692753,121830.0,121820.0,0.71005629]
[1755094585530,0.10692753,121830.0,121820.0,0.26873]
[1755094585743,0.10692753,121830.0,121820.0,0.26869]
[1755094585994,0.11449257,121830.0,121820.0,0.12477]
[1755094586311,0.12975511,121830.0,121820.0,0.71101629]
[1755094586742,0.12975511,121830.0,121820.0,0.71001629]
[1755094587163,0.12719007,121830.0,121820.0,0.71001629]
[1755094587374,0.04446682,121830.0,121820.0,0.56509629]
[1755094587591,0.04446682,121830.0,121820.0,0.26837]
[1755094587819,0.02026254,121830.0,121820.0,0.56509629]
[1755094588039,0.02026254,121830.0,121820.0,0.70969629]
[1755094589036,0.02026254,121830.0,121820.0,0.70869629]
[1755094589631,0.02026254,121830.0,121820.0,0.56409629]
[1755094590000,0.02026254,121830.0,121820.0,0.70812029]
[1755094590214,0.0202426,121830.0,121820.0,0.56380029]
[1755094590426,0.0202426,121830.0,121820.0,0.70804029]
[1755094590628,0.005,121830.0,121820.0,0.70804029]
[1755094590839,0.02023879,121830.0,121820.0,0.58652629]
[1755094591214,0.01523879,121830.0,121820.0,0.44132629]
[1755094591443,0.01523879,121830.0,121820.0,0.58648629]
[1755094591654,0.01723879,121830.0,121820.0,0.74132629]
[1755094591853,0.01723879,121830.0,121820.0,0.63904629]
[1755094591990,0.01723879,121830.0,121820.0,0.44232629]
[1755094592193,0.01523879,121830.0,121790.0,0.00872728]
[1755094592393,0.06684771,121820.0,121810.0,0.44132629]
[1755094592591,0.06584771,121820.0,121800.0,0.14508]
[1755094592792,0.06584771,121820.0,121810.0,0.44426629]
[1755094592997,0.06584771,121820.0,121810.0,0.58946629]
[1755094593598,0.06584771,121820.0,121810.0,0.44426629]
[1755094593804,0.06584771,121820.0,121810.0,0.58954629]
[1755094594276,0.14857096,121820.0,121810.0,0.44426629]
[1755094594456,0.14857096,121820.0,121810.0,0.14516]
[1755094594646,0.15357096,121820.0,121810.0,0.58748629]
[1755094594847,0.09028851,121820.0,121810.0,0.58748629]
[1755094595046,0.08772325,121820.0,121810.0,0.14616]
[1755094595332,0.08772325,121820.0,121810.0,0.44232629]
[1755094595543,0.08272325,121820.0,121810.0,0.58632629]
[1755094595746,0.08272325,121820.0,121810.0,0.58636629]
[1755094595950,0.08872325,121820.0,121810.0,0.58636629]
[1755094596158,0.09173325,121820.0,121810.0,0.001]
[1755094596358,0.09173325,121820.0,121810.0,0.14604]
[1755094596543,0.09173325,121820.0,121810.0,0.14596]
[1755094596794,0.11633225,121820.0,121810.0,0.001]
[1755094596977,0.11332225,121820.0,121810.0,0.001]
[1755094597108,0.08872325,121820.0,121810.0,0.001]
[1755094597315,0.09173325,121820.0,121810.0,0.001]
[1755094597520,0.11633225,121820.0,121810.0,0.14676]
[1755094597724,0.11889751,121820.0,121810.0,0.14672]
[1755094597950,0.11889751,121820.0,121810.0,0.14572]
[1755094598146,0.025,121810.0,121790.0,0.00049075]
[1755094598346,0.08528893,121800.0,121790.0,0.00049075]
[1755094598598,0.08829893,121800.0,121790.0,0.00049075]
[1755094598739,0.08829893,121800.0,121790.0,0.14617075]
[1755094598941,0.08805103,121800.0,121790.0,0.14617075]
[1755094599356,0.08805103,121800.0,121790.0,0.00049075]
[1755094599570,0.08805103,121800.0,121790.0,0.14601075]
[1755094599937,0.08504103,121800.0,121790.0,0.00049075]
[1755094600148,0.08272325,121800.0,121790.0,0.00049075]
[1755094600355,0.09423735,121800.0,121790.0,0.00049075]
[1755094600571,0.53788142,121800.0,121790.0,0.00049075]
[1755094600796,0.53788142,121800.0,121730.0,0.47912478]
[1755094600797,0.44132629,121790.0,121730.0,0.47912478]
[1755094601012,0.08272325,121770.0,121740.0,0.1456]
[1755094601201,0.00231778,121760.0,121740.0,0.1456]
[1755094601416,0.08272325,121750.0,121730.0,0.47912478]
[1755094601566,0.08272325,121750.0,121740.0,0.88882629]
[1755094601767,0.08272325,121750.0,121740.0,0.64098629]
[1755094602106,0.00231778,121780.0,121740.0,0.90212629]
[1755094602328,0.08272325,121770.0,121760.0,0.44132629]
[1755094602472,0.08272325,121770.0,121760.0,0.1456]
[1755094602827,0.08573325,121770.0,121760.0,0.1456]
[1755094603041,0.08504103,121770.0,121760.0,0.1456]
[1755094603402,0.08504103,121770.0,121750.0,0.44132629]
[1755094603723,0.08504103,121770.0,121760.0,0.14552]
[1755094604171,0.06573325,121770.0,121740.0,0.44147318]
[1755094604372,0.00231778,121760.0,121740.0,0.00014689]
[1755094604507,0.02063349,121760.0,121750.0,0.14536]
[1755094604710,0.10335674,121760.0,121740.0,0.00014689]
[1755094604913,0.08573325,121750.0,121740.0,0.00014689]
[1755094605100,0.10103896,121750.0,121740.0,0.00014689]
[1755094605309,0.10103896,121750.0,121740.0,0.14542689]
[1755094605705,0.10103896,121750.0,121740.0,0.14534689]
[1755094605922,0.10335674,121750.0,121730.0,0.03485849]
[1755094606127,0.08805103,121740.0,121730.0,0.03485849]
[1755094606327,0.10335674,121740.0,121730.0,0.03485849]
[1755094606529,0.10335674,121740.0,121730.0,0.17993849]
[1755094606750,0.11619241,121740.0,121730.0,0.17993849]
[1755094606964,0.10335674,121740.0,121730.0,0.17993849]
[1755094607160,0.10335674,121740.0,121730.0,0.17989849]
[1755094607399,0.12835674,121740.0,121730.0,0.02665893]
[1755094607714,0.12835674,121740.0,121730.0,0.17169893]
[1755094608060,0.12205103,121740.0,121730.0,0.01845509]
[1755094608269,0.15013567,121740.0,121730.0,0.01025125]
[1755094608462,0.15013567,121740.0,121730.0,0.15517125]
[1755094608601,0.59146196,121740.0,121730.0,0.00204741]
[1755094608807,0.58914418,121740.0,121730.0,0.14692741]
[1755094609170,0.13498222,121740.0,121690.0,0.44466629]
[1755094609392,0.13498222,121740.0,121700.0,0.44426629]
[1755094609393,0.08272325,121720.0,121700.0,0.44426629]
[1755094609597,0.00231778,121710.0,121700.0,0.00294]
[1755094609799,0.10029,121710.0,121700.0,0.44132629]
[1755094610007,0.10029,121710.0,121690.0,0.00338893]
[1755094610211,0.08272325,121700.0,121690.0,0.44471522]
[1755094610418,0.09797222,121700.0,121690.0,0.58935522]
[1755094610866,0.09797222,121700.0,121690.0,0.44471522]
[1755094610994,0.09797222,121700.0,121690.0,0.58931522]
[1755094611191,0.09792965,121700.0,121690.0,0.44471522]
[1755094611398,0.09792965,121700.0,121690.0,0.24728893]
[1755094611599,0.09792965,121700.0,121690.0,0.44408893]
[1755094612718,0.1106996,121700.0,121690.0,0.44408893]
[1755094612921,0.09792965,121700.0,121690.0,0.29956893]
[1755094613152,0.09792965,121700.0,121690.0,0.19724893]
[1755094613338,0.10093965,121700.0,121650.0,0.47985581]
[1755094613539,0.08805103,121690.0,121660.0,0.00014696]
[1755094613780,0.10325743,121690.0,121660.0,0.14434696]
[1755094614001,0.10325743,121690.0,121660.0,0.44441325]
[1755094614227,0.08272325,121670.0,121660.0,0.00014696]
[1755094614439,0.10024743,121670.0,121660.0,0.00014696]
[1755094614641,0.10325743,121670.0,121660.0,0.00014696]
[1755094614843,0.10325743,121670.0,121660.0,0.14422696]
[1755094615043,0.11358317,121670.0,121660.0,0.00014696]
[1755094615251,0.11358317,121670.0,121660.0,0.14414696]
[1755094615662,0.10024743,121670.0,121660.0,0.00014696]
[1755094615874,0.09792965,121670.0,121660.0,0.14406696]
[1755094616077,0.09792965,121670.0,121660.0,0.00308696]
[1755094616449,0.09792965,121670.0,121660.0,0.44441325]
[1755094616757,0.10592965,121670.0,121660.0,0.00014696]
[1755094616991,0.10824743,121670.0,121660.0,0.00014696]
[1755094617201,0.10819703,121670.0,121660.0,0.00014696]
[1755094617419,0.10819703,121670.0,121660.0,0.14398696]
[1755094617676,0.10819703,121670.0,121660.0,0.00014696]
[1755094617894,0.10587597,121670.0,121660.0,0.14386696]
[1755094618140,0.09787597,121670.0,121660.0,0.00308696]
[1755094618354,0.09787597,121670.0,121660.0,0.58809325]
[1755094618557,0.10287597,121670.0,121660.0,0.00308696]
[1755094618763,0.10287597,121670.0,121660.0,0.14672696]
[1755094619171,0.10287597,121670.0,121660.0,0.14676696]
[1755094619877,0.09787597,121670.0,121660.0,0.00308696]
[1755094620085,0.09787597,121670.0,121660.0,0.14668696]
[1755094620335,0.10487597,121670.0,121660.0,0.14668696]
[1755094620748,0.10487597,121670.0,121660.0,0.14374696]
[1755094621168,0.10487597,121670.0,121660.0,0.00014696]
[1755094621583,0.10487597,121670.0,121660.0,0.29946696]
[1755094621789,0.10487597,121670.0,121660.0,0.44290696]
[1755094622193,0.11874535,121670.0,121660.0,0.19706696]
[1755094622400,0.11874535,121670.0,121660.0,0.34046696]
[1755094622607,0.11874535,121670.0,121660.0,0.00014696]
[1755094623023,0.11874535,121670.0,121660.0,0.14354696]
[1755094623240,0.12106313,121670.0,121660.0,0.14354696]
[1755094623443,0.14569513,121670.0,121660.0,0.14354696]
[1755094623661,0.14569513,121670.0,121660.0,0.00014696]
[1755094623875,0.58702142,121670.0,121660.0,0.14350696]
[1755094624089,0.60970364,121670.0,121660.0,0.14336]
[1755094624304,0.63470364,121670.0,121660.0,0.14336]
[1755094624516,0.63470364,121670.0,121650.0,0.02423688]
[1755094624747,0.59404725,121660.0,121650.0,0.02423688]
[1755094624953,0.66351709,121660.0,121650.0,0.16759688]
[1755094625171,0.68851709,121660.0,121650.0,0.16759688]
[1755094625390,0.70369952,121660.0,121650.0,0.16759688]
[1755094625603,0.28737323,121660.0,121650.0,0.02423688]
[1755094625819,0.65923357,121660.0,121650.0,0.16759688]
[1755094626044,0.65923357,121660.0,121650.0,0.16763688]
[1755094626687,0.21790728,121660.0,121650.0,0.16763688]
[1755094626916,0.15105957,121660.0,121650.0,0.02423688]
[1755094627138,0.13837735,121660.0,121650.0,0.16775688]
[1755094627344,0.13522735,121660.0,121650.0,0.02737688]
[1755094627756,0.13522735,121660.0,121650.0,0.16775688]
[1755094627968,0.13837735,121660.0,121650.0,0.16775688]
[1755094628193,0.13523786,121660.0,121650.0,0.16775688]
[1755094628610,0.10792008,121660.0,121650.0,0.46870317]
[1755094628818,0.10792008,121660.0,121650.0,0.02737688]
[1755094629028,0.10792008,121660.0,121650.0,0.02423688]
[1755094629241,0.10792008,121660.0,121650.0,0.02737688]
[1755094629477,0.10792008,121660.0,121650.0,0.16903688]
[1755094629715,0.09792008,121660.0,121650.0,0.73749317]
[1755094629945,0.09792008,121660.0,121650.0,0.59217317]
[1755094630152,0.10392008,121660.0,121650.0,0.73753317]
[1755094630354,0.02119683,121660.0,121650.0,0.73245317]
[1755094630555,0.09792008,121660.0,121650.0,0.73245317]
[1755094630900,0.10392008,121660.0,121650.0,0.73249317]
[1755094631124,0.10394986,121660.0,121650.0,0.14584688]
[1755094631533,0.09794986,121660.0,121650.0,0.31859688]
[1755094632112,0.09794986,121660.0,121650.0,0.21619688]
[1755094632314,0.11360403,121660.0,121650.0,0.21619688]
[1755094632565,0.11592181,121660.0,121650.0,0.01923688]
[1755094632777,0.11592181,121660.0,121650.0,0.16475688]
[1755094632988,0.18276952,121660.0,121650.0,0.01923688]
[1755094633193,0.64677803,121660.0,121650.0,0.16471688]
[1755094633420,0.67177803,121660.0,121650.0,0.01923688]
[1755094633624,0.67677803,121660.0,121650.0,0.01923688]
[1755094633829,0.21045174,121660.0,121650.0,0.16463688]
[1755094634043,0.12337742,121660.0,121650.0,0.16455688]
[1755094634263,0.16597227,121660.0,121650.0,0.1547058]
[1755094634500,0.15197227,121660.0,121650.0,0.1547058]
[1755094634719,0.17697227,121660.0,121630.0,0.07830579]
[1755094634933,0.08272325,121640.0,121630.0,0.07830579]
[1755094635144,0.10942265,121640.0,121630.0,0.07830579]
[1755094635569,0.11174043,121640.0,121630.0,0.07830579]
[1755094635797,0.13677068,121640.0,121630.0,0.07830579]
[1755094636014,0.13677068,121640.0,121630.0,0.22362579]
[1755094636429,0.13677068,121640.0,121630.0,0.07830579]
[1755094636647,0.13677068,121640.0,121630.0,0.22378579]
[1755094636856,0.16141268,121640.0,121630.0,0.07830579]
[1755094637074,0.16941268,121640.0,121630.0,0.07830579]
[1755094637303,0.23394343,121640.0,121630.0,0.07830579]
[1755094637507,0.69226972,121640.0,121630.0,0.20328848]
[1755094637725,0.69226972,121640.0,121630.0,0.05780848]
[1755094637928,0.7199042,121640.0,121630.0,0.05780848]
[1755094638132,0.7199042,121640.0,121630.0,0.02086139]
[1755094638374,0.27857791,121640.0,121630.0,0.02086139]
[1755094638587,0.69650247,121640.0,121630.0,0.01265093]
[1755094638800,0.05,121610.0,121600.0,0.0004]
[1755094639010,0.12803139,121610.0,121590.0,0.1]
[1755094639220,0.11004103,121600.0,121590.0,0.1]
[1755094639441,0.12849917,121600.0,121590.0,0.24648]
[1755094639671,0.09803139,121600.0,121590.0,0.24648]
[1755094639885,0.09803139,121600.0,121590.0,0.10314]
[1755094640090,0.09803139,121600.0,121590.0,0.25051048]
[1755094640520,0.09803139,121600.0,121590.0,0.25063048]
[1755094641207,0.11683453,121600.0,121590.0,0.25063048]
[1755094641411,0.13214347,121600.0,121590.0,0.10049048]
[1755094641614,0.12314347,121600.0,121590.0,0.99143677]
[1755094641819,0.12314347,121600.0,121590.0,0.40311048]
[1755094641991,0.12314347,121600.0,121590.0,0.55011048]
[1755094641992,0.13014347,121600.0,121590.0,0.55011048]
[1755094642397,0.14315782,121600.0,121590.0,0.30067048]
[1755094642601,0.13014347,121600.0,121590.0,0.44755048]
[1755094643009,0.13014347,121600.0,121590.0,0.86546677]
[1755094643010,0.10503139,121600.0,121590.0,0.86546677]
[1755094643207,0.0825589,121600.0,121590.0,0.57098048]
[1755094643531,0.09786761,121600.0,121590.0,0.22710048]
[1755094643679,0.10586761,121600.0,121590.0,0.37494048]
[1755094643879,0.10586761,121600.0,121590.0,0.22810048]
[1755094644078,0.09786761,121600.0,121590.0,0.37390048]
[1755094644279,0.09786761,121600.0,121590.0,0.22710048]
[1755094644596,0.09786761,121600.0,121590.0,0.37514048]
[1755094644825,0.11365437,121600.0,121590.0,0.10463048]
[1755094644991,0.13887728,121600.0,121590.0,0.24917048]
[1755094645184,0.14434506,121600.0,121590.0,0.24917048]
[1755094645589,0.14434506,121600.0,121590.0,0.10149048]
[1755094645819,0.14119506,121600.0,121590.0,0.24925048]
[1755094646189,0.14434506,121600.0,121590.0,0.10149048]
[1755094646398,0.57967135,121600.0,121590.0,0.24817048]
[1755094646755,0.13602728,121600.0,121590.0,0.24817048]
[1755094646888,0.13834506,121600.0,121590.0,0.24817048]
[1755094647090,0.14534506,121600.0,121590.0,0.24917048]
[1755094647562,0.16299306,121600.0,121590.0,0.24817048]
[1755094647995,0.17399306,121600.0,121590.0,0.24917048]
[1755094648195,0.17167528,121600.0,121590.0,0.24917048]
[1755094648567,0.61300157,121600.0,121590.0,0.24917048]
[1755094648769,0.61300157,121600.0,121590.0,0.09163585]
[1755094648975,0.19667528,121600.0,121590.0,0.08342187]
[1755094649175,0.63800157,121600.0,121590.0,0.22380789]
[1755094649384,0.63800157,121600.0,121590.0,0.22384789]
[1755094649602,0.63800157,121600.0,121590.0,0.21563391]
[1755094650072,0.63800157,121600.0,121590.0,0.20741993]
[1755094650280,0.63800157,121600.0,121590.0,0.20757993]
[1755094650591,0.19667528,121600.0,121590.0,0.19948595]
[1755094650801,0.025,121590.0,121570.0,0.00633305]
[1755094651010,0.08504103,121580.0,121570.0,0.00648003]
[1755094651243,0.10034974,121580.0,121570.0,0.00648003]
[1755094651444,0.10034974,121580.0,121570.0,0.30604003]
[1755094651861,0.10344974,121580.0,121570.0,0.30604003]
[1755094652328,0.10345813,121580.0,121570.0,0.45480003]
[1755094652527,0.58459699,121580.0,121570.0,0.30604003]
[1755094652651,0.58227921,121580.0,121570.0,0.30604003]
[1755094652853,0.15860578,121580.0,121570.0,0.30704003]
[1755094653055,0.025,121570.0,121560.0,0.0034]
[1755094653265,0.12845813,121570.0,121560.0,0.35022715]
[1755094653482,0.16586865,121570.0,121560.0,0.20062715]
[1755094653651,0.10035813,121570.0,121560.0,0.00354715]
[1755094653853,0.10035813,121570.0,121560.0,0.00658715]
[1755094653854,0.09935813,121570.0,121560.0,0.00658715]
[1755094654062,0.09704035,121570.0,121560.0,0.15642715]
[1755094654308,0.09704035,121570.0,121560.0,0.00658715]
[1755094654511,0.09704035,121570.0,121560.0,0.15642715]
[1755094655092,0.09704035,121570.0,121560.0,0.56586344]
[1755094655273,0.0153171,121570.0,121560.0,0.71562344]
[1755094655628,0.003,121600.0,121570.0,0.00822571]
[1755094655834,0.003,121610.0,121590.0,0.44132629]
[1755094656038,0.003,121610.0,121600.0,0.5939483]
[1755094656234,0.003,121610.0,121600.0,0.56162629]
[1755094656389,0.003,121610.0,121600.0,0.71150629]
[1755094656595,0.003,121610.0,121600.0,0.27018]